bitfinex/quotes_BTCUSD_20250108
["timestamp","ask_amount","ask_price","bid_price","bid_amount"]
[1736318552138,0.0487,95999.0,95988.0,0.23972725]
[1736318552351,0.00079397,96000.0,95998.0,0.208337]
[1736318552568,0.00079397,96000.0,95999.0,0.10531621]
[1736318553019,0.00079397,96000.0,95999.0,0.25531621]
[1736318553242,0.00079397,96000.0,95999.0,0.34230906]
[1736318554302,0.00079397,96000.0,95999.0,0.25427474]
[1736318554529,0.00079397,96000.0,95999.0,0.25727474]
[1736318554947,0.00079397,96000.0,95999.0,0.10727474]
[1736318555153,0.00079397,96000.0,95999.0,0.003]
[1736318555564,0.00079397,96000.0,95999.0,0.005]
[1736318555791,0.00079397,96000.0,95999.0,0.002]
[1736318556223,0.00079397,96000.0,95983.0,0.00104169]
[1736318556415,0.00079397,96000.0,95999.0,0.006]
[1736318556755,0.00079397,96000.0,95985.0,0.00104169]
[1736318556963,0.1286,95999.0,95983.0,0.00104169]
[1736318557165,0.1286,95999.0,95968.0,0.20944369]
[1736318557390,0.1286,95999.0,95971.0,0.208396]
[1736318557391,0.20835,95993.0,95971.0,0.208396]
[1736318557564,0.20835,95993.0,95972.0,0.10531658]
[1736318557770,0.20835,95993.0,95972.0,0.11224267]
[1736318558341,0.20835,95993.0,95972.0,0.03000595]
[1736318558541,0.00104184,95992.0,95972.0,0.03000595]
[1736318558745,0.00104184,95992.0,95973.0,0.208391]
[1736318558953,0.208337,95998.0,95974.0,0.10427474]
[1736318559170,0.00104184,95997.0,95980.0,0.03]
[1736318559380,0.1286,95999.0,95981.0,0.14015623]
[1736318559620,0.00104184,95998.0,95981.0,0.11000651]
[1736318559799,0.1286,95999.0,95981.0,0.11000651]
[1736318560746,0.208342,95996.0,95981.0,0.10896475]
[1736318560953,0.00104184,95995.0,95981.0,0.00469001]
[1736318561168,0.20938784,95994.0,95980.0,0.03]
[1736318561311,0.208358,95989.0,95980.0,0.03]
[1736318561530,0.208373,95982.0,95980.0,0.03]
[1736318561734,0.208373,95982.0,95961.0,0.208418]
[1736318561735,0.08254184,95981.0,95961.0,0.208418]
[1736318562037,0.0483,95980.0,95962.0,0.10427474]
[1736318562249,0.0483,95980.0,95949.0,0.15]
[1736318562250,0.00104184,95979.0,95941.0,0.3751313]
[1736318562447,0.0483,95980.0,95964.0,0.208411]
[1736318562780,0.0483,95980.0,95965.0,0.10531667]
[1736318563360,0.0338167,95979.0,95961.0,0.00104192]
[1736318563612,0.0483,95980.0,95962.0,0.10531672]
[1736318564118,0.0483,95980.0,95963.0,0.208413]
[1736318564307,0.0483,95980.0,95964.0,0.00104192]
[1736318564308,0.0821162,95980.0,95964.0,0.00104192]
[1736318564520,0.20941984,95979.0,95965.0,0.10427474]
[1736318565263,0.00104184,95979.0,95965.0,0.10427474]
[1736318565466,0.0483,95980.0,95965.0,0.10427474]
[1736318565729,0.0483,95980.0,95966.0,0.208407]
[1736318565989,0.0483,95980.0,95967.0,0.10427474]
[1736318566202,0.0483,95980.0,95973.0,0.20839]
[1736318566405,0.0483,95980.0,95975.0,0.023]
[1736318566612,0.0483,95980.0,95976.0,0.10427474]
[1736318567442,0.0483,95980.0,95973.0,0.001]
[1736318567650,0.0483,95980.0,95974.0,0.10427474]
[1736318568288,0.1256,95999.0,95976.0,0.173]
[1736318568496,0.00104184,95998.0,95977.0,0.13771758]
[1736318568700,0.00104184,95998.0,95978.0,0.03240113]
[1736318568903,0.00104184,95998.0,95981.0,0.208373]
[1736318569125,0.00104184,95998.0,95982.0,0.10427474]
[1736318569310,0.00104184,95998.0,95990.0,0.2751313]
[1736318569941,0.00084395,95998.0,95990.0,0.41232802]
[1736318570417,0.00084395,95998.0,95989.0,0.41232802]
[1736318571258,0.00084395,95998.0,95992.0,0.41232802]
[1736318571470,0.416679,95997.0,95992.0,0.41232802]
[1736318571669,0.208344,95995.0,95992.0,0.41232802]
[1736318571877,0.208364,95986.0,95981.0,0.3144769]
[1736318572090,0.208344,95995.0,95981.0,0.3144769]
[1736318572308,0.00084395,95994.0,95981.0,0.3144769]
[1736318572505,0.1256,95999.0,95984.0,0.41207945]
[1736318572913,0.208339,95997.0,95984.0,0.41207945]
[1736318573139,0.00084395,95996.0,95994.0,0.41207945]
[1736318573665,0.00084395,95996.0,95981.0,0.3144769]
[1736318573867,0.208371,95983.0,95981.0,0.3144769]
[1736318574200,0.00084395,95998.0,95962.0,0.208414]
[1736318574201,0.0789,95982.0,95979.0,0.3144769]
[1736318574872,0.0789,95982.0,95968.0,0.3144769]
[1736318575069,0.0789,95982.0,95970.0,0.208398]
[1736318575285,0.0789,95982.0,95971.0,0.10427474]
[1736318576161,0.20921795,95981.0,95968.0,0.3144769]
[1736318576345,0.208376,95980.0,95968.0,0.3144769]
[1736318576563,0.208381,95978.0,95971.0,0.001]
[1736318576822,0.00084395,95977.0,95971.0,0.005]
[1736318577007,0.208385,95976.0,95971.0,0.005]
[1736318577239,0.0486,95975.0,95971.0,0.001]
[1736318577895,0.0486,95975.0,95963.0,0.3144769]
[1736318578091,0.208392,95973.0,95970.0,0.41371808]
[1736318578306,0.208396,95971.0,95970.0,0.41371808]
[1736318578733,0.208396,95971.0,95963.0,0.41371808]
[1736318578939,0.2084,95969.0,95963.0,0.41371808]
[1736318579139,0.208411,95964.0,95963.0,0.41371808]
[1736318579548,0.208411,95964.0,95902.0,0.284266]
[1736318579549,0.208424,95959.0,95956.0,0.41371808]
[1736318579759,0.256226,95957.0,95956.0,0.41371808]
[1736318579960,0.256226,95957.0,95953.0,0.28015923]
[1736318580165,0.208431,95955.0,95953.0,0.28015923]
[1736318580585,0.0478,95957.0,95953.0,0.28015923]
[1736318580790,0.00084395,95956.0,95942.0,0.28024453]
[1736318580996,0.0478,95957.0,95943.0,0.10531692]
[1736318581208,0.0478,95957.0,95953.0,0.208435]
[1736318581411,0.0478,95957.0,95954.0,0.10427474]
[1736318581619,0.0751,95963.0,95954.0,0.10427474]
[1736318581840,0.00015301,95964.0,95962.0,0.208415]
[1736318582038,0.00015301,95964.0,95949.0,0.40371808]
[1736318582244,0.00015301,95964.0,95957.0,0.10427474]
[1736318582854,0.00015301,95964.0,95958.0,0.00104201]
[1736318583132,0.00015301,95964.0,95958.0,0.10427474]
[1736318583329,0.00015301,95964.0,95959.0,0.28023689]
[1736318583770,0.208413,95963.0,95959.0,0.28023689]
[1736318583979,0.00015301,95964.0,95945.0,0.208452]
[1736318584177,0.00015301,95964.0,95947.0,0.208448]
[1736318584353,0.00015301,95964.0,95943.0,0.28023689]
[1736318584354,0.02109301,95964.0,95943.0,0.28023689]
[1736318584563,0.20843,95956.0,95943.0,0.38451163]
[1736318584766,0.00084395,95955.0,95943.0,0.38451163]
[1736318584943,0.208418,95961.0,95943.0,0.10427474]
[1736318585400,0.208444,95949.0,95942.0,8.53e-05]
[1736318585584,0.00084395,95948.0,95942.0,8.53e-05]
[1736318585784,0.416896,95947.0,95942.0,8.53e-05]
[1736318585980,0.208452,95945.0,95942.0,8.53e-05]
[1736318586202,0.208448,95947.0,95942.0,8.53e-05]
[1736318586203,0.00084395,95944.0,95942.0,8.53e-05]
[1736318586423,0.208457,95943.0,95942.0,8.53e-05]
[1736318586825,0.5208319,95943.0,95942.0,8.53e-05]
[1736318587025,0.479057,95943.0,95942.0,8.53e-05]
[1736318587456,0.479057,95943.0,95908.0,0.28023689]
[1736318587457,0.208485,95930.0,95908.0,0.28023689]
[1736318587660,0.338085,95930.0,95901.0,0.28023689]
[1736318588142,0.338085,95930.0,95897.0,0.041767]
[1736318588323,0.338085,95930.0,95898.0,0.00104259]
[1736318588525,0.338085,95930.0,95900.0,0.208548]
[1736318588710,0.338085,95930.0,95929.0,0.00059575]
[1736318590774,0.338085,95930.0,95903.0,8.53e-05]
[1736318590775,0.20853,95910.0,95903.0,8.53e-05]
[1736318590976,0.20853,95910.0,95903.0,0.00023837]
[1736318591201,0.208521,95914.0,95903.0,0.00023837]
[1736318591403,0.208504,95922.0,95903.0,0.00023837]
[1736318591576,0.1296,95930.0,95910.0,0.208527]
[1736318591779,0.208487,95929.0,95911.0,0.10531735]
[1736318591991,0.1296,95930.0,95911.0,0.31384235]
[1736318592593,0.1296,95930.0,95911.0,0.10531735]
[1736318592793,0.1296,95930.0,95916.0,0.208514]
[1736318592942,0.1296,95930.0,95917.0,0.10427474]
[1736318593917,0.1296,95930.0,95918.0,0.208511]
[1736318594131,0.1296,95930.0,95919.0,0.10427474]
[1736318594753,0.1296,95930.0,95919.0,0.10531719]
[1736318594986,0.1296,95930.0,95922.0,0.208502]
[1736318595190,0.1296,95930.0,95923.0,0.10427474]
[1736318595366,0.1296,95930.0,95918.0,0.20851]
[1736318595563,0.1296,95930.0,95919.0,0.10427474]
[1736318595802,0.1296,95930.0,95919.0,0.10527474]
[1736318596228,0.1296,95930.0,95919.0,0.10427474]
[1736318596428,0.208487,95929.0,95918.0,0.002]
[1736318596631,0.20933095,95929.0,95918.0,0.002]
[1736318597263,0.00084395,95929.0,95918.0,0.002]
[1736318597898,0.1296,95930.0,95919.0,0.10427474]
[1736318598347,0.1296,95930.0,95919.0,0.15650976]
[1736318598515,0.0471,95930.0,95928.0,0.208489]
[1736318598680,0.0818,95943.0,95928.0,0.208489]
[1736318598681,0.0818,95943.0,95928.0,0.31276374]
[1736318599081,0.208459,95942.0,95928.0,0.10427474]
[1736318599292,0.20930295,95942.0,95928.0,0.10427474]
[1736318599770,0.45161224,95942.0,95920.0,0.208507]
[1736318599976,0.24315324,95942.0,95922.0,0.208502]
[1736318600202,0.24315324,95942.0,95924.0,0.208498]
[1736318600402,0.20930295,95942.0,95925.0,0.10427474]
[1736318601007,0.00084395,95941.0,95925.0,0.10427474]
[1736318602157,0.0818,95943.0,95926.0,0.41802936]
[1736318602332,0.0818,95943.0,95927.0,0.10427474]
[1736318602538,0.08264395,95943.0,95927.0,0.10427474]
[1736318602946,0.0818,95943.0,95928.0,0.208489]
[1736318603151,0.0818,95943.0,95929.0,0.10427474]
[1736318603357,0.0818,95943.0,95930.0,0.208485]
[1736318603571,0.0818,95943.0,95931.0,0.10427474]
[1736318604008,0.208484,95931.0,95911.0,0.28023689]
[1736318604222,0.00084395,95930.0,95915.0,0.10427474]
[1736318604423,0.208472,95936.0,95915.0,0.10427474]
[1736318605045,0.208472,95936.0,95916.0,0.208515]
[1736318605862,0.208472,95936.0,95916.0,0.31278974]
[1736318606078,0.0818,95943.0,95921.0,0.023]
[1736318606278,0.0818,95943.0,95928.0,0.208488]
[1736318606500,0.0818,95943.0,95929.0,0.10427474]
[1736318607399,0.03469344,95942.0,95907.0,0.28023689]
[1736318607636,0.208493,95927.0,95916.0,0.001]
[1736318607838,0.0458,95925.0,95908.0,0.28023689]
[1736318608048,0.208531,95909.0,95908.0,0.28023689]
[1736318608275,0.3076841,95909.0,95908.0,0.28023689]
[1736318608481,0.286831,95909.0,95905.0,0.01037247]
[1736318608678,0.286831,95909.0,95903.0,0.00023837]
[1736318608894,0.0783,95909.0,95903.0,0.00023837]
[1736318609108,0.208533,95908.0,95903.0,0.00023837]
[1736318609527,0.208537,95906.0,95903.0,0.00023837]
[1736318609737,0.20857,95891.0,95887.0,8.52e-05]
[1736318609944,0.00084395,95890.0,95887.0,8.52e-05]
[1736318610177,0.208569,95892.0,95887.0,8.52e-05]
[1736318610383,0.00084395,95891.0,95887.0,8.52e-05]
[1736318610589,0.00084395,95894.0,95887.0,8.52e-05]
[1736318611020,0.20940895,95893.0,95887.0,8.52e-05]
[1736318611227,0.00084395,95893.0,95887.0,8.52e-05]
[1736318611874,0.208571,95891.0,95887.0,8.52e-05]
[1736318612094,0.208574,95889.0,95887.0,8.52e-05]
[1736318612304,0.208574,95889.0,95885.0,8.52e-05]
[1736318612305,0.208578,95887.0,95885.0,8.52e-05]
[1736318612519,0.69437795,95886.0,95885.0,8.52e-05]
[1736318612734,0.312308,95886.0,95885.0,8.52e-05]
[1736318613172,0.41658274,95886.0,95885.0,8.52e-05]
[1736318613404,0.312308,95886.0,95885.0,8.52e-05]
[1736318614047,0.208578,95887.0,95885.0,8.52e-05]
[1736318614259,0.00084395,95886.0,95885.0,8.52e-05]
[1736318615439,0.20942395,95887.0,95885.0,8.52e-05]
[1736318615641,0.05519335,95886.0,95885.0,8.52e-05]
[1736318617122,0.00084395,95886.0,95885.0,8.52e-05]
[1736318617343,0.15287995,95886.0,95885.0,8.52e-05]
[1736318617547,0.00084395,95886.0,95885.0,8.52e-05]
[1736318617919,0.26431895,95886.0,95885.0,8.52e-05]
[1736318618121,0.263475,95886.0,95885.0,8.52e-05]
[1736318618764,0.3440875,95886.0,95885.0,8.52e-05]
[1736318619170,0.545166,95885.0,95880.0,8.53e-05]
[1736318619371,0.10511869,95884.0,95880.0,8.53e-05]
[1736318619580,0.907466,95883.0,95880.0,8.53e-05]
[1736318619785,0.77411969,95882.0,95880.0,8.53e-05]
[1736318619985,0.73574443,95881.0,95880.0,8.53e-05]
[1736318620188,1.04861017,95881.0,95880.0,8.53e-05]
[1736318621565,0.208609,95873.0,95872.0,8.52e-05]
[1736318621823,0.208609,95873.0,95872.0,0.00023841]
[1736318622206,0.500677,95873.0,95872.0,0.00023841]
[1736318622396,0.477732,95873.0,95872.0,0.00023841]
[1736318622598,0.208591,95881.0,95872.0,0.00023841]
[1736318622986,0.128,95885.0,95873.0,0.10427474]
[1736318623447,0.00084395,95884.0,95872.0,0.00023841]
[1736318623635,0.2086,95878.0,95872.0,0.00023841]
[1736318623886,0.417206,95876.0,95872.0,0.00023841]
[1736318624086,0.208607,95874.0,95872.0,0.00023841]
[1736318624374,0.00084395,95873.0,95872.0,0.00023841]
[1736318625143,0.41402595,95882.0,95872.0,0.00023841]
[1736318625517,0.20543495,95882.0,95872.0,0.00023841]
[1736318626104,0.128,95885.0,95873.0,0.10427474]
[1736318626221,0.128,95885.0,95874.0,0.01056414]
[1736318626432,0.128,95885.0,95873.0,0.10427474]
[1736318628952,0.128,95885.0,95872.0,0.00023841]
[1736318629403,0.417188,95880.0,95872.0,0.00023841]
[1736318630436,0.208609,95873.0,95872.0,0.00023841]
[1736318630999,0.208596,95879.0,95872.0,0.00023841]
[1736318631407,0.208608,95874.0,95872.0,0.00023841]
[1736318632269,0.208598,95878.0,95872.0,0.00023841]
[1736318633503,0.20859,95882.0,95872.0,0.00023841]
[1736318633966,0.128,95885.0,95872.0,0.00023841]
[1736318633967,0.208585,95884.0,95872.0,0.00023841]
[1736318634182,0.208599,95878.0,95872.0,0.00023841]
[1736318634574,0.208588,95883.0,95872.0,0.00023841]
[1736318634815,0.336584,95885.0,95872.0,0.00023841]
[1736318634816,0.128,95885.0,95872.0,0.00023841]
[1736318635015,0.336584,95885.0,95872.0,0.00023841]
[1736318635172,0.336583,95885.0,95872.0,0.00023841]
[1736318636015,0.0545156,95884.0,95872.0,0.00023841]
[1736318636184,0.208587,95883.0,95872.0,0.00023841]
[1736318636834,0.2086,95878.0,95872.0,0.00023841]
[1736318637014,0.208587,95883.0,95872.0,0.00023841]
[1736318637417,0.208598,95878.0,95872.0,0.00023841]
[1736318637815,0.128,95885.0,95872.0,0.00023841]
[1736318638034,0.208585,95884.0,95872.0,0.00023841]
[1736318638692,0.128,95885.0,95873.0,0.10427474]
[1736318639233,0.128,95885.0,95872.0,0.00023841]
[1736318639234,0.208585,95884.0,95872.0,0.00023841]
[1736318640022,0.208597,95879.0,95872.0,0.00023841]
[1736318642811,0.4172,95877.0,95872.0,0.00023841]
[1736318643510,0.208604,95875.0,95872.0,0.00023841]
[1736318643707,0.31287874,95875.0,95872.0,0.00023841]
[1736318644330,0.208609,95873.0,95872.0,0.00023841]
[1736318644558,1.69284874,95873.0,95872.0,0.00023841]
[1736318644761,0.25,95868.0,95867.0,8.52e-05]
[1736318644963,2.76428974,95868.0,95867.0,8.52e-05]
[1736318645169,2.84488974,95868.0,95867.0,8.52e-05]
[1736318645824,2.74488974,95868.0,95867.0,8.52e-05]
[1736318646034,0.33487474,95868.0,95867.0,8.52e-05]
[1736318646254,2.18526748,95868.0,95867.0,8.52e-05]
[1736318646446,0.3775,95862.0,95861.0,2e-07]
[1736318646562,0.84757984,95862.0,95861.0,2e-07]
[1736318646989,0.41731,95852.0,95823.0,8.52e-05]
[1736318647192,0.417318,95850.0,95823.0,8.52e-05]
[1736318647388,1.52296374,95849.0,95823.0,8.52e-05]
[1736318647588,1.403693,95848.0,95823.0,8.52e-05]
[1736318647795,0.10427474,95847.0,95823.0,8.52e-05]
[1736318648101,1.40795774,95847.0,95823.0,8.52e-05]
[1736318648312,1.50393148,95847.0,95823.0,8.52e-05]
[1736318649358,1.60393148,95847.0,95823.0,8.52e-05]
[1736318649566,0.96537974,95847.0,95823.0,8.52e-05]
[1736318649770,0.94447474,95847.0,95823.0,8.52e-05]
[1736318650398,0.91247474,95847.0,95823.0,8.52e-05]
[1736318651612,0.73859474,95847.0,95823.0,8.52e-05]
[1736318651801,0.84286948,95847.0,95823.0,8.52e-05]
[1736318652356,0.73859474,95847.0,95823.0,8.52e-05]
[1736318655011,0.83859474,95847.0,95823.0,8.52e-05]
[1736318655371,0.73859474,95847.0,95823.0,8.52e-05]
[1736318656568,0.10427474,95847.0,95823.0,8.52e-05]
[1736318656714,0.69835874,95847.0,95823.0,8.52e-05]
[1736318656922,0.54482174,95847.0,95823.0,8.52e-05]
[1736318657647,0.64909648,95847.0,95823.0,8.52e-05]
[1736318657849,0.54482174,95847.0,95823.0,8.52e-05]
[1736318659280,0.208663,95848.0,95823.0,8.52e-05]
[1736318659620,0.1275,95851.0,95825.0,0.208711]
[1736318660174,0.1275,95851.0,95825.0,0.417422]
[1736318660370,0.208646,95856.0,95830.0,0.208701]
[1736318660583,0.208646,95856.0,95837.0,0.01063562]
[1736318660782,0.208646,95856.0,95825.0,0.208711]
[1736318661030,0.417293,95856.0,95826.0,0.00104343]
[1736318661231,0.417293,95856.0,95830.0,0.208701]
[1736318661232,0.208646,95856.0,95830.0,0.208701]
[1736318661932,0.208659,95850.0,95834.0,0.01048269]
[1736318663268,0.208646,95856.0,95834.0,0.01048269]
[1736318664021,0.208635,95861.0,95836.0,0.208688]
[1736318664260,0.417272,95861.0,95836.0,0.208688]
[1736318664599,0.208629,95864.0,95842.0,0.208675]
[1736318666349,0.02104273,95877.0,95857.0,0.208643]
[1736318666549,0.25599,95882.0,95858.0,0.10531788]
[1736318666750,0.25599,95882.0,95858.0,0.10925857]
[1736318667185,0.0474,95882.0,95858.0,0.11030166]
[1736318667352,0.0474,95882.0,95859.0,0.208639]
[1736318667569,0.0474,95882.0,95851.0,0.208656]
[1736318667570,0.0474,95882.0,95861.0,0.208635]
[1736318667747,0.0474,95882.0,95861.0,0.31290974]
[1736318667947,0.0474,95882.0,95863.0,0.208631]
[1736318668273,0.0474,95882.0,95864.0,0.10948984]
[1736318668486,0.0474,95882.0,95865.0,0.208626]
[1736318668697,0.0474,95882.0,95865.0,0.1094893]
[1736318669894,0.0789,95888.0,95866.0,0.208623]
[1736318670096,0.0474,95897.0,95872.0,0.208611]
[1736318670295,0.0474,95897.0,95872.0,0.31288574]
[1736318670517,0.208555,95898.0,95872.0,0.3180721]
[1736318671432,0.417111,95898.0,95872.0,0.3180721]
[1736318671652,0.208566,95893.0,95872.0,0.3210721]
[1736318671815,0.208566,95893.0,95872.0,0.3180721]
[1736318672015,0.208579,95887.0,95872.0,0.00518636]
[1736318672220,0.208579,95887.0,95872.0,0.003]
[1736318672430,0.208579,95887.0,95872.0,0.00916911]
[1736318672676,0.208579,95887.0,95872.0,0.004]
[1736318672894,0.208579,95887.0,95872.0,0.00916911]
[1736318673579,0.208568,95892.0,95872.0,0.11344385]
[1736318673843,0.208568,95892.0,95872.0,0.13627131]
[1736318674344,0.208568,95892.0,95872.0,0.11344385]
[1736318676166,0.02153928,95900.0,95872.0,0.3874868]
[1736318676361,0.02153928,95900.0,95872.0,0.38644385]
[1736318676786,0.02153928,95900.0,95872.0,0.28644385]
[1736318677163,0.2087228,95900.0,95872.0,0.28644385]
[1736318677404,0.2087228,95900.0,95872.0,0.11344385]
[1736318677613,0.2087228,95900.0,95872.0,0.11448677]
[1736318677819,0.2087228,95900.0,95872.0,0.13748677]
[1736318678026,0.2087228,95900.0,95872.0,0.13348677]
[1736318678230,0.2087228,95900.0,95872.0,0.13548677]
[1736318678406,0.2087228,95900.0,95872.0,0.14448677]
[1736318679237,0.2087228,95900.0,95872.0,0.13548677]
[1736318679448,0.2087228,95900.0,95872.0,0.13348677]
[1736318679889,0.0001708,95900.0,95872.0,0.56047]
[1736318680090,0.0001708,95900.0,95899.0,0.381552]
[1736318680298,0.0001708,95900.0,95899.0,0.48582674]
[1736318680503,0.0001708,95900.0,95899.0,0.49133018]
[1736318681490,0.0001708,95900.0,95899.0,0.49533018]
[1736318681789,0.0001708,95900.0,95899.0,0.58879917]
[1736318682091,0.0001708,95900.0,95899.0,0.59379917]
[1736318682304,0.0001708,95900.0,95899.0,0.58879917]
[1736318682701,0.0001708,95900.0,95899.0,0.59779917]
[1736318683225,0.0001708,95900.0,95899.0,0.51463781]
[1736318684016,0.0001708,95900.0,95899.0,0.12408581]
[1736318684214,0.0001708,95900.0,95899.0,0.12908581]
[1736318684583,0.0001708,95900.0,95899.0,0.12408581]
[1736318684780,0.0001708,95900.0,95899.0,0.12277818]
[1736318685050,0.0001708,95900.0,95899.0,0.01450344]
[1736318685051,0.0485708,95900.0,95899.0,0.01450344]
[1736318685245,0.04849581,95900.0,95899.0,0.00550344]
[1736318685469,0.25704581,95900.0,95899.0,0.001]
[1736318685680,0.25704581,95900.0,95899.0,0.005]
[1736318685884,0.25704581,95900.0,95899.0,0.001]
[1736318686085,0.25704581,95900.0,95872.0,0.071927]
[1736318686086,0.208572,95890.0,95872.0,0.071927]
[1736318686286,0.208584,95885.0,95872.0,0.071927]
[1736318686477,0.208575,95889.0,95873.0,0.0055057]
[1736318686666,0.0752,95899.0,95872.0,0.17620174]
[1736318686891,0.208573,95890.0,95874.0,0.21411216]
[1736318687012,0.208573,95890.0,95874.0,0.208607]
[1736318687216,0.417147,95890.0,95875.0,0.00550462]
[1736318687435,0.0752,95884.0,95872.0,0.071927]
[1736318687632,0.0484,95873.0,95872.0,0.071927]
[1736318688771,0.0752,95884.0,95872.0,0.071927]
[1736318689175,0.0752,95884.0,95873.0,0.208608]
[1736318689176,0.07408,95884.0,95873.0,0.208608]
[1736318689673,0.07408,95884.0,95874.0,0.0489155]
[1736318689875,0.07408,95884.0,95875.0,0.208604]
[1736318690246,0.0484,95889.0,95876.0,0.10427474]
[1736318690923,0.0484,95889.0,95877.0,0.2086]
[1736318691111,0.0484,95889.0,95878.0,0.10427474]
[1736318691348,0.0484,95889.0,95879.0,0.04337172]
[1736318691555,0.0484,95889.0,95880.0,0.10427474]
[1736318691885,0.0484,95889.0,95881.0,0.208591]
[1736318692090,0.0484,95889.0,95883.0,0.208587]
[1736318692290,0.0484,95889.0,95883.0,0.31286174]
[1736318692752,0.07769581,95900.0,95883.0,0.57359401]
[1736318692960,0.07769581,95900.0,95883.0,0.52144874]
[1736318693364,0.07769581,95900.0,95883.0,0.31286174]
[1736318693779,0.07769581,95900.0,95891.0,0.208568]
[1736318694191,9.581e-05,95900.0,95897.0,0.208556]
[1736318694609,9.581e-05,95900.0,95898.0,0.00548662]
[1736318695010,9.581e-05,95900.0,95893.0,0.208565]
[1736318695242,9.581e-05,95900.0,95894.0,0.10427474]
[1736318695445,9.581e-05,95900.0,95894.0,0.10976352]
[1736318698419,9.581e-05,95900.0,95895.0,0.208561]
[1736318698680,9.581e-05,95900.0,95895.0,0.31283574]
[1736318698931,9.581e-05,95900.0,95896.0,0.0054877]
[1736318699439,9.581e-05,95900.0,95895.0,0.52139674]
[1736318699674,9.581e-05,95900.0,95895.0,0.31283574]
[1736318699893,9.581e-05,95900.0,95896.0,0.00547284]
[1736318700110,9.581e-05,95900.0,95897.0,0.208557]
[1736318700567,9.581e-05,95900.0,95899.0,0.208552]
[1736318700815,9.581e-05,95900.0,95899.0,0.46282674]
[1736318701074,9.581e-05,95900.0,95899.0,0.49129796]
[1736318701512,9.581e-05,95900.0,95899.0,0.52375685]
[1736318701715,9.581e-05,95900.0,95899.0,0.61915342]
[1736318701895,9.581e-05,95900.0,95899.0,0.58669453]
[1736318702101,9.581e-05,95900.0,95899.0,0.61815446]
[1736318702456,9.581e-05,95900.0,95899.0,0.62115446]
[1736318702874,9.581e-05,95900.0,95899.0,0.26374596]
[1736318703096,9.581e-05,95900.0,95899.0,0.154]
[1736318703513,9.581e-05,95900.0,95899.0,0.004]
[1736318704222,9.581e-05,95900.0,95892.0,0.01065188]
[1736318704433,9.581e-05,95900.0,95884.0,0.48804962]
[1736318704632,9.581e-05,95900.0,95899.0,0.009]
[1736318704832,9.581e-05,95900.0,95899.0,0.002]
[1736318705269,9.581e-05,95900.0,95899.0,0.001]
[1736318705418,9.581e-05,95900.0,95899.0,0.27827474]
[1736318705623,9.581e-05,95900.0,95899.0,0.27727474]
[1736318705828,9.581e-05,95900.0,95899.0,0.34671441]
[1736318706017,9.581e-05,95900.0,95899.0,0.25427474]
[1736318706441,0.00014111,95912.0,95899.0,0.30974645]
[1736318706642,0.00029015,95912.0,95911.0,0.231526]
[1736318706892,0.00029015,95912.0,95911.0,0.33580074]
[1736318707494,0.00029015,95912.0,95911.0,0.61558956]
[1736318707693,0.00029015,95912.0,95911.0,0.84800232]
[1736318708071,0.00019802,95912.0,95911.0,0.84800232]
[1736318708297,0.00019802,95912.0,95911.0,0.88046605]
[1736318708473,0.00019802,95912.0,95911.0,0.60067723]
[1736318708675,0.00019802,95912.0,95911.0,1.34107723]
[1736318708873,0.0001706,95926.0,95919.0,0.25]
[1736318709128,0.0001706,95926.0,95922.0,0.58577674]
[1736318709331,0.0001706,95926.0,95922.0,0.71824047]
[1736318709773,0.0001706,95926.0,95922.0,0.61824047]
[1736318709971,0.0001706,95926.0,95922.0,0.51824047]
[1736318710176,0.0001706,95926.0,95922.0,0.52865458]
[1736318710311,0.0001706,95926.0,95922.0,0.49619085]
[1736318710736,0.0001706,95926.0,95922.0,1.00939956]
[1736318710939,0.0001706,95926.0,95922.0,1.1439204]
[1736318711145,0.0001706,95926.0,95922.0,0.63071169]
[1736318711318,0.0001706,95926.0,95922.0,0.83498643]
[1736318711523,0.0001706,95926.0,95922.0,1.14031433]
[1736318711726,0.0001706,95926.0,95922.0,1.14331433]
[1736318711932,0.12668581,95958.0,95947.0,0.208446]
[1736318712126,0.00051045,95957.0,95948.0,0.10427474]
[1736318712339,0.00051045,95957.0,95949.0,0.208444]
[1736318712558,0.00051045,95957.0,95950.0,0.10427474]
[1736318712974,0.00051045,95957.0,95951.0,0.208439]
[1736318713196,0.00051045,95957.0,95952.0,0.10427474]
[1736318713400,0.00051045,95957.0,95953.0,0.08008896]
[1736318713601,0.00051045,95957.0,95954.0,0.10427474]
[1736318715022,0.00051045,95957.0,95956.0,0.208428]
[1736318715228,0.00051045,95957.0,95956.0,0.31753277]
[1736318716120,0.00051045,95957.0,95956.0,0.00483003]
[1736318716470,0.00051045,95957.0,95952.0,0.27972983]
[1736318716623,0.00051045,95957.0,95956.0,0.00470728]
[1736318716832,0.00051045,95957.0,95956.0,0.002]
[1736318717051,0.00051045,95957.0,95956.0,0.00670728]
[1736318717650,0.12911045,95957.0,95956.0,0.00670728]
[1736318718048,0.12911045,95957.0,95956.0,0.002]
[1736318718248,0.12911045,95957.0,95940.0,0.15]
[1736318718477,0.12911045,95957.0,95941.0,0.10932626]
[1736318719035,0.208428,95956.0,95941.0,0.10932626]
[1736318719278,0.12911045,95957.0,95941.0,0.00505152]
[1736318719486,0.0832,95955.0,95941.0,0.00505152]
[1736318719653,0.0832,95943.0,95930.0,0.27972983]
[1736318719999,0.0832,95943.0,95936.0,0.208471]
[1736318720156,0.0832,95943.0,95937.0,0.18447463]
[1736318720359,0.0832,95943.0,95938.0,0.208467]
[1736318720539,0.0832,95943.0,95939.0,0.10427474]
[1736318720756,0.0832,95943.0,95940.0,0.416926]
[1736318720953,0.0827,95951.0,95941.0,0.10427474]
[1736318721242,0.0827,95951.0,95941.0,0.31273474]
[1736318721470,0.0827,95951.0,95942.0,0.03231675]
[1736318721685,0.0827,95951.0,95944.0,0.208452]
[1736318721834,0.0827,95951.0,95946.0,0.20845]
[1736318722038,0.0454,95954.0,95948.0,0.208446]
[1736318722243,0.0454,95954.0,95949.0,0.10427474]
[1736318724335,0.0454,95954.0,95936.0,0.208471]
[1736318724538,0.0454,95954.0,95938.0,0.416934]
[1736318724762,0.0454,95954.0,95939.0,0.10531692]
[1736318724964,0.0454,95954.0,95945.0,0.208451]
[1736318725163,0.0454,95954.0,95945.0,0.31272574]
[1736318725371,0.0454,95954.0,95947.0,0.208448]
[1736318725569,0.0454,95954.0,95946.0,0.05211877]
[1736318725971,0.0454,95954.0,95945.0,0.10427474]
[1736318726886,0.208435,95953.0,95934.0,0.01039556]
[1736318727100,0.0779,95952.0,95935.0,0.10427474]
[1736318727294,0.0779,95952.0,95927.0,0.20849]
[1736318727498,0.1266,95939.0,95926.0,0.27972983]